[Event "Nordic Chess-ch 2019"]
[Site "Sarpsborg"]
[Date "2019.06.25"]
[Round "7.6"]
[White "Gretarsson, Helgi Ass"]
[Black "Vitenberg, Noam Aviv"]
[Result "1-0"]
[ECO "A07"]
[WhiteElo "2433"]
[BlackElo "2256"]
[Annotator "NA"]
[PlyCount "117"]
[EventDate "2019.06.21"]
[EventType "swiss"]
[EventCountry "NOR"]
[SourceTitle "playchess.com"]
[Source "ChessBase"]
[SourceQuality "1"]
[TimeControl "40/5400+30:1800+30"]

1. Nf3 {[%emt 0:00:00]} Nf6 {[%emt 0:00:00]} 2. g3 {[%emt 0:00:00]} d5 {[%emt 0:00:00]} 3. Bg2 {[%emt 0:00:02]} c6 {[%emt 0:00:00]} 4. O-O {[%emt 0:00:06]} Bg4 {[%emt 0:00:06]} 5. h3 {[%emt 0:00:28]} Bh5 {[%emt 0:00:36]} 6. d3 {[%emt 0:02:21]} Nbd7 {[%emt 0:00:13]} 7. Nbd2 {[%emt 0:02:46]} e5 {[%emt 0:11:20]} 8. e4 {[%emt 0:00:37]} dxe4 {[%emt 0:01:47]} 9. dxe4 {[%emt 0:03:23]} Bc5 {[%emt 0:01:26]} 10. Qe1 {[%emt 0:00:33]} O-O {[%emt 0:01:10]} 11. b3 {[%emt 0:21:34]} Bb4 {[%emt 0:15:08]} 12. Qe3 {[%emt 0:15:54]} Re8 {[%emt 0:14:49]} 13. a3 {[%emt 0:16:39]} Bc5 {[%emt 0:02:22]} 14. Qc3 {[%emt 0:00:02]} Qc7 {[%emt 0:15:03]} 15. b4 {[%emt 0:06:59]} Bf8 {[%emt 0:03:23]} 16. Bb2 {[%emt 0:00:16]} b5 {[%emt 0:00:59]} 17. Qb3 {[%emt 0:08:57]} c5 {[%emt 0:03:05]} 18. c4 {[%emt 0:00:52]} Rab8 {[%emt 0:07:59]} 19. cxb5 {[%emt 0:02:36]} Rxb5 {[%emt 0:01:04]} 20. Rfc1 {[%emt 0:00:07]} Qb8 {[%emt 0:00:51]} 21. Bf1 {[%emt 0:00:08]} Rb6 {[%emt 0:03:18]} 22. b5 {[%emt 0:00:29]} Rd8 {[%emt 0:02:49]} 23. a4 {[%emt 0:00:35]} Re6 {[%emt 0:01:01]} 24. Bc4 {[%emt 0:07:17]} Re7 {[%emt 0:00:54]} 25. a5 {[%emt 0:00:13]} Ne8 {[%emt 0:00:45]} 26. Nh4 {[%emt 0:01:41]} Ndf6 {[%emt 0:02:25]} 27. Ndf3 {[%emt 0:01:18]} Nxe4 {[%emt 0:03:09]} 28. Nf5 {[%emt 0:00:10]} Rb7 {[%emt 0:00:29]} 29. g4 {[%emt 0:05:09]} Bg6 {[%emt 0:01:06]} 30. Bxe5 {[%emt 0:02:27]} N8d6 {[%emt 0:03:04]} 31. Ne3 {[%emt 0:00:29]} Qc8 {[%emt 0:01:25]} 32. Bf1 {[%emt 0:00:41]} Kh8 {[%emt 0:00:35]} 33. b6 {[%emt 0:00:11]} Qd7 {[%emt 0:01:07]} 34. Rd1 {[%emt 0:01:23]} f6 {[%emt 0:00:47]} 35. Bf4 {[%emt 0:00:32]} Qe8 {[%emt 0:02:19]} 36. Ba6 {[%emt 0:00:14]} Rbb8 {[%emt 0:00:21]} 37. Nc4 {[%emt 0:00:47]} Qe6 {[%emt 0:00:52]} 38. b7 {[%emt 0:00:29]} Bf7 {[%emt 0:00:35]} 39. Rac1 {[%emt 0:00:07]} h5 {[%emt 0:00:25]} 40. Qe3 {[%emt 0:00:52]} hxg4 {[%emt 0:00:23]} 41. Nxd6 {[%emt 0:03:44]} Bxd6 {[%emt 0:04:42]} 42. Bc4 {[%emt 0:12:34]} Qf5 {[%emt 0:09:49]} 43. Rxd6 {[%emt 0:00:11]} Nxd6 {[%emt 0:01:17]} 44. Bxf7 {[%emt 0:10:44]} gxf3 {[%emt 0:05:21]} 45. Rxc5 {[%emt 0:00:40]} Qb1+ {[%emt 0:00:27]} 46. Kh2 {[%emt 0:00:01]} Nxf7 {[%emt 0:01:06]} 47. Bxb8 {[%emt 0:00:06]} Qxb7 {[%emt 0:01:39]} 48. Bxa7 {[%emt 0:04:22]} Ne5 {[%emt 0:06:14]} 49. Bb6 {[%emt 0:00:16]} Re8 {[%emt 0:02:25]} 50. Qf4 {[%emt 0:00:23]} Qa6 {[%emt 0:00:42]} 51. Qa4 {[%emt 0:01:23]} Qa8 {[%emt 0:01:30]} 52. Rc7 {[%emt 0:00:43]} Rb8 {[%emt 0:01:06]} 53. Qh4+ {[%emt 0:01:26]} Kg8 {[%emt 0:00:06]} 54. Qg3 {[%emt 0:00:02]} g6 {[%emt 0:00:50]} 55. Qh4 {[%emt 0:00:06]} Nf7 {[%emt 0:00:34]} 56. Qxf6 {[%emt 0:00:08]} Qd5 {[%emt 0:00:27]} 57. Qxg6+ {[%emt 0:00:45]} Kf8 {[%emt 0:00:32]} 58. Bc5+ {[%emt 0:00:07]} Ke8 {[%emt 0:00:18]} 59. Qg8# {[%emt 0:02:25]} 1-0

[Event "Nordic Chess-ch 2019"]
[Site "Sarpsborg"]
[Date "2019.06.25"]
[Round "7.7"]
[White "Rydstrom, Tom"]
[Black "Getz, Nicolai"]
[Result "0-1"]
[ECO "C41"]
[WhiteElo "2370"]
[BlackElo "2380"]
[Annotator "NA"]
[PlyCount "116"]
[EventDate "2019.06.21"]
[EventType "swiss"]
[EventCountry "NOR"]
[SourceTitle "playchess.com"]
[Source "ChessBase"]
[SourceQuality "1"]
[TimeControl "40/5400+30:1800+30"]

1. e4 {[%emt 0:00:00]} d6 {[%emt 0:00:00]} 2. Nc3 {[%emt 0:00:00]} e5 {[%emt 0:03:04]} 3. Nf3 {[%emt 0:01:01]} Nf6 {[%emt 0:01:18]} 4. Bc4 {[%emt 0:00:22]} Be7 {[%emt 0:00:45]} 5. d4 {[%emt 0:02:03]} Nbd7 {[%emt 0:00:32]} 6. a4 {[%emt 0:00:10]} c6 {[%emt 0:01:13]} 7. Ba2 {[%emt 0:00:26]} O-O {[%emt 0:00:30]} 8. O-O {[%emt 0:00:06]} b6 {[%emt 0:00:40]} 9. Re1 {[%emt 0:01:08]} a6 {[%emt 0:00:04]} 10. Bg5 {[%emt 0:01:49]} Rb8 {[%emt 0:01:19]} 11. Bh4 {[%emt 0:03:44]} b5 {[%emt 0:00:18]} 12. axb5 {[%emt 0:00:22]} axb5 {[%emt 0:00:16]} 13. Bg3 {[%emt 0:00:17]} Qc7 {[%emt 0:02:08]} 14. h3 {[%emt 0:08:45]} b4 {[%emt 0:01:51]} 15. Nb1 {[%emt 0:00:38]} c5 {[%emt 0:09:18]} 16. dxe5 {[%emt 0:01:23]} dxe5 {[%emt 0:00:37]} 17. Nbd2 {[%emt 0:01:24]} Nh5 {[%emt 0:00:37]} 18. Bh2 {[%emt 0:02:30]} Nf4 {[%emt 0:02:04]} 19. Nc4 {[%emt 0:04:14]} Rd8 {[%emt 0:01:27]} 20. Qc1 {[%emt 0:00:27]} g5 {[%emt 0:03:42]} 21. Ne3 {[%emt 0:05:10]} Nb6 {[%emt 0:01:27]} 22. h4 {[%emt 0:13:09]} h6 {[%emt 0:05:33]} 23. hxg5 {[%emt 0:00:15]} hxg5 {[%emt 0:01:56]} 24. Nd5 {[%emt 0:29:16]} Nbxd5 {[%emt 0:00:09]} 25. exd5 {[%emt 0:00:31]} Bf6 {[%emt 0:01:20]} 26. Qe3 {[%emt 0:01:49]} c4 {[%emt 0:23:55]} 27. Qe4 {[%emt 0:02:50]} b3 {[%emt 0:14:43]} 28. cxb3 {[%emt 0:00:04]} cxb3 {[%emt 0:00:14]} 29. Bb1 {[%emt 0:01:53]} Rb5 {[%emt 0:02:37]} 30. Bxf4 {[%emt 0:09:26]} gxf4 {[%emt 0:00:05]} 31. Qh7+ {[%emt 0:07:06]} Kf8 {[%emt 0:00:05]} 32. Bd3 {[%emt 0:02:07]} Rbxd5 {[%emt 0:00:28]} 33. Rac1 {[%emt 0:00:01]} Rc5 {[%emt 0:02:02]} 34. Rxc5 {[%emt 0:00:32]} Qxc5 {[%emt 0:00:02]} 35. Be4 {[%emt 0:01:03]} Ke7 {[%emt 0:02:16]} 36. Nh4 {[%emt 0:00:17]} Rd2 {[%emt 0:02:32]} 37. Rf1 {[%emt 0:00:13]} Be6 {[%emt 0:03:51]} 38. Bf5 {[%emt 0:01:20]} Bc4 {[%emt 0:04:16]} 39. Ng6+ {[%emt 0:00:19]} Kd6 {[%emt 0:00:11]} 40. Qg8 {[%emt 0:01:13]} Bxf1 {[%emt 0:05:14]} 41. Qb8+ {[%emt 0:04:14]} Kd5 {[%emt 0:09:47]} 42. Qa8+ {[%emt 0:06:12]} Kc4 {[%emt 0:00:34]} 43. Qa4+ {[%emt 0:01:10]} Qb4 {[%emt 0:01:33]} 44. Qc6+ {[%emt 0:01:04]} Kd4 {[%emt 0:00:39]} 45. Qd7+ {[%emt 0:00:05]} Kc5 {[%emt 0:00:28]} 46. Qc7+ {[%emt 0:04:36]} Kb5 {[%emt 0:00:41]} 47. Qb7+ {[%emt 0:09:07]} Ka5 {[%emt 0:01:22]} 48. Qc7+ {[%emt 0:08:09]} Qb6 {[%emt 0:02:25]} 49. Qc3+ {[%emt 0:00:00]} Ka4 {[%emt 0:00:04]} 50. Qxd2 {[%emt 0:00:00]} fxg6 {[%emt 0:00:10]} 51. Bxg6 {[%emt 0:00:17]} Bb5 {[%emt 0:00:34]} 52. Bf7 {[%emt 0:00:08]} Qc5 {[%emt 0:05:53]} 53. Qd1 {[%emt 0:00:21]} Bc4 {[%emt 0:01:06]} 54. Be8+ {[%emt 0:01:02]} Ka5 {[%emt 0:00:39]} 55. Qd2+ {[%emt 0:00:21]} Kb6 {[%emt 0:00:10]} 56. Qd7 {[%emt 0:01:06]} Qc7 {[%emt 0:02:27]} 57. Qa4 {[%emt 0:00:22]} Be7 {[%emt 0:00:23]} 58. Bg6 {[%emt 0:00:49]} Qc6 {[%emt 0:15:26]} 0-1

[Event "Nordic Chess-ch 2019"]
[Site "Sarpsborg"]
[Date "2019.06.25"]
[Round "7.8"]
[White "Rishovd, Svein"]
[Black "Lindgren, Philip"]
[Result "0-1"]
[ECO "E51"]
[WhiteElo "2113"]
[BlackElo "2384"]
[Annotator "NA"]
[PlyCount "112"]
[EventDate "2019.06.21"]
[EventType "swiss"]
[EventCountry "NOR"]
[SourceTitle "playchess.com"]
[Source "ChessBase"]
[SourceQuality "1"]
[TimeControl "40/5400+30:1800+30"]

1. d4 {[%emt 0:00:00]} Nf6 {[%emt 0:00:14]} 2. c4 {[%emt 0:00:41]} e6 {[%emt 0:00:18]} 3. Nc3 {[%emt 0:01:05]} Bb4 {[%emt 1:30:58]} 4. e3 {[%emt 0:00:09]} O-O {[%emt 0:00:00]} 5. Nf3 {[%emt 0:00:28]} d5 {[%emt 0:00:00]} 6. Bd2 {[%emt 0:00:41]} b6 {[%emt 0:00:00]} 7. cxd5 {[%emt 0:00:26]} exd5 {[%emt 0:00:00]} 8. Rc1 {[%emt 0:00:42]} a6 {[%emt 0:00:00]} 9. Bd3 {[%emt 0:03:11]} Bb7 {[%emt 0:00:00]} 10. O-O {[%emt 0:01:36]} Nbd7 {[%emt 0:00:00]} 11. Qc2 {[%emt 0:17:47]} Re8 {[%emt 0:00:00]} 12. Ne2 {[%emt 0:17:29]} Bd6 {[%emt 0:00:00]} 13. Nh4 {[%emt 0:03:07]} g6 {[%emt 0:00:00]} 14. g3 {[%emt 0:00:51]} c5 {[%emt 0:00:00]} 15. Qd1 {[%emt 0:04:45]} c4 {[%emt 0:00:00]} 16. Bb1 {[%emt 0:01:09]} b5 {[%emt 0:00:00]} 17. Nf4 {[%emt 0:05:39]} Ne4 {[%emt 0:00:00]} 18. Nfg2 {[%emt 0:04:18]} Nxd2 {[%emt 0:00:00]} 19. Qxd2 {[%emt 0:00:18]} Nf6 {[%emt 0:00:00]} 20. f4 {[%emt 0:08:50]} Ne4 {[%emt 0:00:00]} 21. Qd1 {[%emt 0:00:39]} Bc8 {[%emt 0:00:00]} 22. Nf3 {[%emt 0:05:19]} Bg4 {[%emt 0:00:00]} 23. Bc2 {[%emt 0:02:07]} f6 {[%emt 0:00:00]} 24. Ra1 {[%emt 0:03:00]} a5 {[%emt 0:00:00]} 25. Qc1 {[%emt 0:00:28]} Qd7 {[%emt 0:00:00]} 26. Nd2 {[%emt 0:01:30]} Nxd2 {[%emt 0:00:21]} 27. Qxd2 {[%emt 0:00:05]} Re7 {[%emt 0:00:25]} 28. a3 {[%emt 0:01:08]} Qc7 {[%emt 0:03:46]} 29. e4 {[%emt 0:01:43]} dxe4 {[%emt 0:02:02]} 30. Ne3 {[%emt 0:00:05]} f5 {[%emt 0:04:16]} 31. Nd5 {[%emt 0:00:52]} Qb7 {[%emt 0:00:50]} 32. Nf6+ {[%emt 0:06:28]} Kh8 {[%emt 0:02:02]} 33. Nxg4 {[%emt 0:00:07]} fxg4 {[%emt 0:00:06]} 34. Rfe1 {[%emt 0:02:17]} Qd5 {[%emt 0:00:39]} 35. Qe3 {[%emt 0:03:32]} Rae8 {[%emt 0:00:38]} 36. Re2 {[%emt 0:01:14]} Bc7 {[%emt 0:00:32]} 37. Rd1 {[%emt 0:00:41]} a4 {[%emt 0:00:49]} 38. Kg2 {[%emt 0:03:28]} Bb6 {[%emt 0:00:15]} 39. Kf1 {[%emt 0:00:38]} Kg7 {[%emt 0:00:28]} 40. Kg2 {[%emt 0:00:42]} Ba7 {[%emt 0:00:40]} 41. Rde1 {[%emt 0:12:50]} Qxd4 {[%emt 0:06:43]} 42. Qxd4+ {[%emt 0:00:14]} Bxd4 {[%emt 0:00:06]} 43. Bxe4 {[%emt 0:00:42]} c3 {[%emt 0:06:34]} 44. bxc3 {[%emt 0:01:15]} Bxc3 {[%emt 0:00:22]} 45. Rc1 {[%emt 0:00:11]} Ba5 {[%emt 0:00:23]} 46. Rb2 {[%emt 0:01:30]} Rxe4 {[%emt 0:00:18]} 47. Rxb5 {[%emt 0:00:08]} Bd2 {[%emt 0:04:48]} 48. Rf1 {[%emt 0:03:18]} Bc3 {[%emt 0:02:22]} 49. f5 {[%emt 0:01:05]} g5 {[%emt 0:01:10]} 50. Rb6 {[%emt 0:02:29]} Bf6 {[%emt 0:01:15]} 51. Ra6 {[%emt 0:00:25]} Re2+ {[%emt 0:01:08]} 52. Kh1 {[%emt 0:00:18]} Re1 {[%emt 0:01:21]} 53. Kg2 {[%emt 0:00:39]} Rxf1 {[%emt 0:00:27]} 54. Kxf1 {[%emt 0:00:09]} Re4 {[%emt 0:00:06]} 55. Ra7+ {[%emt 0:00:14]} Be7 {[%emt 0:00:27]} 56. Kf2 {[%emt 0:01:59]} Kf6 {[%emt 0:00:16]} 0-1

[Event "Nordic Chess-ch 2019"]
[Site "Sarpsborg"]
[Date "2019.06.25"]
[Round "7.9"]
[White "Ogaard, Leif"]
[Black "Abdrlauf, Elham"]
[Result "1/2-1/2"]
[ECO "E12"]
[WhiteElo "2385"]
[BlackElo "2207"]
[Annotator "NA"]
[PlyCount "128"]
[EventDate "2019.06.21"]
[EventType "swiss"]
[EventCountry "NOR"]
[SourceTitle "playchess.com"]
[Source "ChessBase"]
[SourceQuality "1"]
[TimeControl "40/5400+30:1800+30"]

1. c4 {[%emt 0:00:00]} b6 {[%emt 0:04:28]} 2. d4 {[%emt 0:00:48]} e6 {[%emt 0:00:46]} 3. a3 {[%emt 0:01:46]} Bb7 {[%emt 0:00:31]} 4. Nc3 {[%emt 0:00:16]} d5 {[%emt 0:06:23]} 5. cxd5 {[%emt 0:01:38]} exd5 {[%emt 0:00:07]} 6. Nf3 {[%emt 0:02:15]} Nf6 {[%emt 0:02:25]} 7. g3 {[%emt 0:05:33]} a6 {[%emt 0:06:57]} 8. Bg2 {[%emt 0:00:44]} Bd6 {[%emt 0:00:12]} 9. Nh4 {[%emt 0:03:26]} Nbd7 {[%emt 0:14:46]} 10. Qb3 {[%emt 0:03:02]} Nf8 {[%emt 0:23:04]} 11. O-O {[%emt 0:04:22]} Be7 {[%emt 0:02:38]} 12. Nf5 {[%emt 0:02:48]} Ne6 {[%emt 0:00:19]} 13. Nxe7 {[%emt 0:03:28]} Kxe7 {[%emt 0:01:53]} 14. Rd1 {[%emt 0:03:52]} Re8 {[%emt 0:00:53]} 15. f4 {[%emt 0:09:02]} g6 {[%emt 0:02:36]} 16. g4 {[%emt 0:02:28]} Nxg4 {[%emt 0:06:04]} 17. Nxd5+ {[%emt 0:03:08]} Kf8 {[%emt 0:00:46]} 18. f5 {[%emt 0:02:37]} Ng5 {[%emt 0:04:26]} 19. Qb4+ {[%emt 0:21:56]} Kg8 {[%emt 0:03:54]} 20. Qc4 {[%emt 0:07:47]} Nh3+ {[%emt 0:03:11]} 21. Bxh3 {[%emt 0:01:41]} Bxd5 {[%emt 0:00:02]} 22. Qd3 {[%emt 0:00:34]} Qh4 {[%emt 0:05:56]} 23. Qg3 {[%emt 0:03:41]} Qxg3+ {[%emt 0:00:03]} 24. hxg3 {[%emt 0:00:09]} gxf5 {[%emt 0:05:20]} 25. Re1 {[%emt 0:00:42]} Re4 {[%emt 0:03:12]} 26. Bf4 {[%emt 0:00:24]} Rae8 {[%emt 0:01:05]} 27. Rac1 {[%emt 0:06:44]} c6 {[%emt 0:00:21]} 28. Bxg4 {[%emt 0:00:44]} fxg4 {[%emt 0:00:08]} 29. e3 {[%emt 0:00:07]} h5 {[%emt 0:01:00]} 30. Rf1 {[%emt 0:00:15]} R8e6 {[%emt 0:01:02]} 31. Rc2 {[%emt 0:00:23]} Rxe3 {[%emt 0:00:29]} 32. Bxe3 {[%emt 0:00:34]} Rxe3 {[%emt 0:00:00]} 33. Rh2 {[%emt 0:04:07]} Rxg3+ {[%emt 0:00:10]} 34. Kf2 {[%emt 0:00:06]} Rd3 {[%emt 0:00:47]} 35. Rxh5 {[%emt 0:00:17]} Rxd4 {[%emt 0:00:21]} 36. Rg5+ {[%emt 0:01:27]} Kf8 {[%emt 0:00:06]} 37. Ke3 {[%emt 0:00:06]} Re4+ {[%emt 0:00:20]} 38. Kd3 {[%emt 0:00:07]} Ke7 {[%emt 0:01:12]} 39. Rg1 {[%emt 0:00:13]} Rf4 {[%emt 0:00:39]} 40. R5xg4 {[%emt 0:00:46]} Rf3+ {[%emt 0:00:05]} 41. Kd2 {[%emt 0:31:21]} Kd6 {[%emt 0:30:14]} 42. Re1 {[%emt 0:00:40]} f5 {[%emt 0:00:41]} 43. Rh4 {[%emt 0:00:45]} a5 {[%emt 0:00:00]} 44. Re3 {[%emt 0:00:00]} Rf1 {[%emt 0:00:00]} 45. Re1 {[%emt 0:00:00]} Rxe1 {[%emt 0:00:00]} 46. Kxe1 {[%emt 0:00:00]} Ke5 {[%emt 0:00:00]} 47. Kd2 {[%emt 0:00:00]} f4 {[%emt 0:00:00]} 48. Kd3 {[%emt 0:00:00]} Be4+ {[%emt 0:00:00]} 49. Ke2 {[%emt 0:00:00]} a4 {[%emt 0:00:00]} 50. Kd2 {[%emt 0:00:00]} b5 {[%emt 0:00:00]} 51. Ke2 {[%emt 0:00:00]} Bd5 {[%emt 0:00:00]} 52. Kd3 {[%emt 0:00:00]} Bc4+ {[%emt 0:00:00]} 53. Kd2 {[%emt 0:00:00]} Ke4 {[%emt 0:00:00]} 54. Rh3 {[%emt 0:00:00]} Bd5 {[%emt 0:00:00]} 55. Ke2 {[%emt 0:00:00]} c5 {[%emt 0:00:00]} 56. Kd2 {[%emt 0:00:00]} Bc4 {[%emt 0:00:00]} 57. Rh5 {[%emt 0:00:00]} Bd5 {[%emt 0:00:00]} 58. Rh3 {[%emt 0:00:00]} Bc4 {[%emt 0:02:08]} 59. Rh5 {[%emt 0:00:00]} Bd5 {[%emt 0:02:45]} 60. Rh3 {[%emt 0:00:00]} b4 {[%emt 0:01:02]} 61. axb4 {[%emt 0:00:00]} cxb4 {[%emt 0:00:06]} 62. Rh8 {[%emt 0:00:52]} Kf3 {[%emt 0:03:38]} 63. Rh5 {[%emt 0:01:25]} Bg8 {[%emt 0:01:39]} 64. Rb5 {[%emt 0:00:16]} a3 {[%emt 0:00:31]} 1/2-1/2

[Event "Nordic Chess-ch 2019"]
[Site "Sarpsborg"]
[Date "2019.06.25"]
[Round "7.10"]
[White "Cederstam Barsk, Carl"]
[Black "Kvaloy, Aksel Bu"]
[Result "1-0"]
[ECO "D38"]
[WhiteElo "2334"]
[BlackElo "2138"]
[Annotator "NA"]
[PlyCount "97"]
[EventDate "2019.06.21"]
[EventType "swiss"]
[EventCountry "NOR"]
[SourceTitle "playchess.com"]
[Source "ChessBase"]
[SourceQuality "1"]
[TimeControl "40/5400+30:1800+30"]

1. Nf3 {[%emt 0:00:00]} d5 {[%emt 0:00:00]} 2. d4 {[%emt 0:00:00]} Nf6 {[%emt 0:01:21]} 3. c4 {[%emt 0:00:00]} e6 {[%emt 0:00:08]} 4. Nc3 {[%emt 0:00:04]} Bb4 {[%emt 0:00:29]} 5. cxd5 {[%emt 0:00:27]} exd5 {[%emt 0:00:09]} 6. Qa4+ {[%emt 0:00:48]} Nc6 {[%emt 0:00:18]} 7. Bg5 {[%emt 0:00:07]} h6 {[%emt 0:02:10]} 8. Bxf6 {[%emt 0:00:10]} Qxf6 {[%emt 0:00:10]} 9. e3 {[%emt 0:00:07]} O-O {[%emt 0:01:38]} 10. Be2 {[%emt 0:00:06]} Be6 {[%emt 0:01:50]} 11. O-O {[%emt 0:00:21]} a6 {[%emt 0:01:16]} 12. Rfc1 {[%emt 0:01:51]} Bd6 {[%emt 0:01:45]} 13. Qd1 {[%emt 0:00:49]} Ne7 {[%emt 0:00:57]} 14. Na4 {[%emt 0:08:21]} b6 {[%emt 0:07:40]} 15. b4 {[%emt 0:02:12]} a5 {[%emt 0:12:04]} 16. a3 {[%emt 0:03:41]} Bd7 {[%emt 0:03:04]} 17. Nc5 {[%emt 0:14:36]} Bf5 {[%emt 0:16:38]} 18. Na6 {[%emt 0:15:04]} Ra7 {[%emt 0:14:14]} 19. bxa5 {[%emt 0:16:22]} Bc8 {[%emt 0:06:26]} 20. axb6 {[%emt 0:15:52]} Rxa6 {[%emt 0:00:54]} 21. Bxa6 {[%emt 0:00:31]} Bxa6 {[%emt 0:00:05]} 22. bxc7 {[%emt 0:14:03]} Rc8 {[%emt 0:11:54]} 23. Qa4 {[%emt 0:00:29]} Rxc7 {[%emt 0:02:51]} 24. Ne5 {[%emt 0:00:13]} Rxc1+ {[%emt 0:00:46]} 25. Rxc1 {[%emt 0:00:01]} Bxe5 {[%emt 0:00:37]} 26. dxe5 {[%emt 0:00:01]} Qe6 {[%emt 0:00:18]} 27. e4 {[%emt 0:02:12]} Bb7 {[%emt 0:10:00]} 28. Qb4 {[%emt 0:01:00]} Bc6 {[%emt 0:01:16]} 29. exd5 {[%emt 0:00:27]} Qxd5 {[%emt 0:00:43]} 30. f3 {[%emt 0:00:01]} Qxe5 {[%emt 0:00:51]} 31. Re1 {[%emt 0:00:15]} Qg5 {[%emt 0:02:22]} 32. Qxe7 {[%emt 0:00:13]} Qg6 {[%emt 0:00:04]} 33. Qe3 {[%emt 0:00:19]} h5 {[%emt 0:00:18]} 34. Rc1 {[%emt 0:01:54]} h4 {[%emt 0:00:57]} 35. h3 {[%emt 0:02:33]} Bd7 {[%emt 0:00:39]} 36. Qd4 {[%emt 0:01:04]} Qg5 {[%emt 0:00:07]} 37. Rc5 {[%emt 0:00:55]} Qg3 {[%emt 0:00:17]} 38. Qe5 {[%emt 0:00:21]} Qg6 {[%emt 0:00:42]} 39. Qb8+ {[%emt 0:00:18]} Kh7 {[%emt 0:00:09]} 40. Qb4 {[%emt 0:00:49]} Qh6 {[%emt 0:01:06]} 41. Qe4+ {[%emt 0:03:55]} Kg8 {[%emt 0:03:35]} 42. Kh1 {[%emt 0:02:09]} Qd2 {[%emt 0:06:34]} 43. Rd5 {[%emt 0:02:07]} Qc1+ {[%emt 0:00:14]} 44. Kh2 {[%emt 0:00:02]} Qc7+ {[%emt 0:00:53]} 45. Qe5 {[%emt 0:00:01]} Qc8 {[%emt 0:00:57]} 46. Qd6 {[%emt 0:00:20]} Qc1 {[%emt 0:00:27]} 47. Qb8+ {[%emt 0:00:20]} Bc8 {[%emt 0:00:18]} 48. Rd8+ {[%emt 0:00:05]} Kh7 {[%emt 0:00:02]} 49. Rxc8 {[%emt 0:00:11]} 1-0

[Event "Nordic Chess-ch 2019"]
[Site "Sarpsborg"]
[Date "2019.06.25"]
[Round "7.11"]
[White "Hobber, Anders"]
[Black "Nilsen, Tobias Lang"]
[Result "1/2-1/2"]
[ECO "A30"]
[WhiteElo "2282"]
[BlackElo "1986"]
[Annotator "NA"]
[PlyCount "92"]
[EventDate "2019.06.21"]
[EventType "swiss"]
[EventCountry "NOR"]
[SourceTitle "playchess.com"]
[Source "ChessBase"]
[SourceQuality "1"]
[TimeControl "40/5400+30:1800+30"]

1. d4 {[%emt 0:00:00]} Nf6 {[%emt 0:00:00]} 2. Nf3 {[%emt 0:00:11]} e6 {[%emt 0:00:00]} 3. e3 {[%emt 0:00:21]} b6 {[%emt 0:11:36]} 4. Bd3 {[%emt 0:00:10]} Bb7 {[%emt 0:00:07]} 5. O-O {[%emt 0:00:18]} d5 {[%emt 0:01:10]} 6. c4 {[%emt 0:01:02]} Be7 {[%emt 0:06:29]} 7. Nc3 {[%emt 0:00:36]} O-O {[%emt 0:00:10]} 8. b3 {[%emt 0:01:26]} dxc4 {[%emt 0:05:23]} 9. Bxc4 {[%emt 0:02:33]} c5 {[%emt 0:01:59]} 10. Bb2 {[%emt 0:06:22]} cxd4 {[%emt 0:00:36]} 11. Nxd4 {[%emt 0:01:15]} Nc6 {[%emt 0:00:14]} 12. Nxc6 {[%emt 0:07:27]} Bxc6 {[%emt 0:05:42]} 13. Qe2 {[%emt 0:01:21]} Qc8 {[%emt 0:02:21]} 14. Ba6 {[%emt 0:07:11]} Bb7 {[%emt 0:00:08]} 15. Bd3 {[%emt 0:01:14]} e5 {[%emt 0:26:37]} 16. Rac1 {[%emt 0:06:05]} Qe6 {[%emt 0:01:25]} 17. e4 {[%emt 0:17:37]} Bc5 {[%emt 0:09:19]} 18. Kh1 {[%emt 0:09:45]} Qg4 {[%emt 0:03:08]} 19. f3 {[%emt 0:01:27]} Qg5 {[%emt 0:00:11]} 20. Na4 {[%emt 0:02:57]} Bd6 {[%emt 0:00:27]} 21. Rcd1 {[%emt 0:02:10]} Nh5 {[%emt 0:03:17]} 22. Bc1 {[%emt 0:04:26]} Qe7 {[%emt 0:00:23]} 23. Bc4 {[%emt 0:01:21]} h6 {[%emt 0:01:32]} 24. Bd5 {[%emt 0:02:48]} Bxd5 {[%emt 0:00:10]} 25. Rxd5 {[%emt 0:00:34]} Nf6 {[%emt 0:00:14]} 26. Rd3 {[%emt 0:00:50]} Rfd8 {[%emt 0:02:28]} 27. Rfd1 {[%emt 0:00:19]} Bb4 {[%emt 0:01:45]} 28. Be3 {[%emt 0:02:49]} Rxd3 {[%emt 0:01:11]} 29. Qxd3 {[%emt 0:03:18]} Rc8 {[%emt 0:01:53]} 30. Kg1 {[%emt 0:02:30]} Qc7 {[%emt 0:06:52]} 31. Rc1 {[%emt 0:00:47]} Qd7 {[%emt 0:00:15]} 32. Rxc8+ {[%emt 0:02:58]} Qxc8 {[%emt 0:00:08]} 33. Kf2 {[%emt 0:01:39]} Kf8 {[%emt 0:00:52]} 34. Ke2 {[%emt 0:00:52]} Ke7 {[%emt 0:00:34]} 35. Nb2 {[%emt 0:01:19]} Nd7 {[%emt 0:02:26]} 36. Nc4 {[%emt 0:01:15]} b5 {[%emt 0:01:29]} 37. Nb2 {[%emt 0:00:14]} a6 {[%emt 0:00:07]} 38. Nd1 {[%emt 0:02:22]} Qc6 {[%emt 0:05:29]} 39. Bf2 {[%emt 0:01:40]} Qc1 {[%emt 0:00:38]} 40. Ne3 {[%emt 0:02:34]} Qb2+ {[%emt 0:00:10]} 41. Qc2 {[%emt 0:30:30]} Qxc2+ {[%emt 0:30:06]} 42. Nxc2 {[%emt 0:00:06]} Bc5 {[%emt 0:00:05]} 43. Be1 {[%emt 0:01:29]} Bd6 {[%emt 0:00:00]} 44. Ne3 {[%emt 0:00:00]} g6 {[%emt 0:00:00]} 45. Nd5+ {[%emt 0:00:00]} Ke6 {[%emt 0:00:00]} 46. Bf2 {[%emt 0:00:00]} Nf6 {[%emt 0:00:00]} 1/2-1/2